bitfinex/quotes_BTCUSD_20250109
["timestamp","ask_amount","ask_price","bid_price","bid_amount"]
[1736458594519,0.003,92302.0,92295.0,0.216696]
[1736458594745,0.01983833,92302.0,92292.0,0.216703]
[1736458595164,0.003,92302.0,92292.0,0.216703]
[1736458595375,0.13850991,92302.0,92292.0,0.216703]
[1736458596036,0.13850991,92302.0,92296.0,0.216691]
[1736458596037,0.001,92300.0,92296.0,0.216691]
[1736458596914,0.001,92300.0,92293.0,0.10429976]
[1736458597360,0.13550991,92303.0,92293.0,0.10429976]
[1736458597573,0.13550991,92303.0,92288.0,0.216712]
[1736458597574,0.002,92300.0,92288.0,0.216712]
[1736458597699,0.002,92300.0,92289.0,0.10429976]
[1736458598331,0.003,92300.0,92289.0,0.09529974]
[1736458598773,0.003,92300.0,92282.0,0.00023305]
[1736458598989,0.216698,92295.0,92283.0,0.216724]
[1736458599200,0.216698,92295.0,92282.0,0.10453281]
[1736458599201,0.13550991,92296.0,92287.0,0.216714]
[1736458599416,0.13550991,92296.0,92287.0,0.32101376]
[1736458599876,0.13550991,92296.0,92288.0,0.216712]
[1736458600073,0.003,92300.0,92289.0,0.24079346]
[1736458600296,0.003,92300.0,92295.0,0.216694]
[1736458600511,0.01737236,92306.0,92291.0,0.216705]
[1736458600726,0.001,92300.0,92293.0,0.216701]
[1736458600931,0.001,92300.0,92293.0,0.32100076]
[1736458601363,0.1511513,92310.0,92300.0,0.0824]
[1736458601597,0.002,92306.0,92300.0,0.0824]
[1736458602016,0.13550991,92310.0,92300.0,0.0824]
[1736458602672,0.01591192,92314.0,92301.0,0.10538308]
[1736458602886,0.35214791,92320.0,92301.0,0.10538308]
[1736458603098,0.35214791,92320.0,92301.0,0.10429976]
[1736458603538,0.2274,92330.0,92305.0,0.023]
[1736458603539,0.006,92310.0,92305.0,0.023]
[1736458603773,0.13550991,92330.0,92310.0,0.216661]
[1736458604002,0.13550991,92330.0,92321.0,0.216634]
[1736458604210,0.13550991,92330.0,92304.0,0.216674]
[1736458604211,0.13550991,92340.0,92328.0,0.20761598]
[1736458604420,0.216593,92339.0,92323.0,0.21663]
[1736458604624,0.13550991,92340.0,92323.0,0.32092976]
[1736458604837,0.216593,92339.0,92323.0,0.32092976]
[1736458605060,0.21708714,92339.0,92323.0,0.32092976]
[1736458605291,0.21708714,92339.0,92324.0,0.16005587]
[1736458605491,0.21808714,92339.0,92324.0,0.16005587]
[1736458605695,0.00149414,92339.0,92325.0,0.216626]
[1736458606115,0.216595,92338.0,92324.0,0.10429976]
[1736458606333,0.13550991,92334.0,92324.0,0.10429976]
[1736458606951,0.13550991,92334.0,92325.0,0.216626]
[1736458607379,0.00149414,92339.0,92319.0,0.216639]
[1736458607590,0.13550991,92329.0,92324.0,0.001]
[1736458608010,0.13550991,92329.0,92325.0,0.216626]
[1736458608221,0.13550991,92335.0,92325.0,0.216626]
[1736458608426,0.13550991,92335.0,92325.0,0.20762598]
[1736458609055,0.13550991,92335.0,92325.0,0.42425198]
[1736458609262,0.13550991,92335.0,92326.0,0.216623]
[1736458610561,0.13550991,92335.0,92328.0,0.216619]
[1736458610770,0.13550991,92335.0,92329.0,0.10429976]
[1736458611677,0.13550991,92335.0,92332.0,0.216608]
[1736458611885,0.13550991,92335.0,92329.0,0.32191576]
[1736458612100,0.13550991,92335.0,92329.0,0.53853176]
[1736458612963,0.13550991,92335.0,92332.0,0.002]
[1736458613171,0.01552771,92337.0,92329.0,0.32091576]
[1736458613371,0.00049414,92339.0,92333.0,0.20760498]
[1736458613549,0.00049414,92339.0,92332.0,0.001]
[1736458613973,0.00049414,92339.0,92325.0,0.216625]
[1736458614800,0.01613521,92339.0,92325.0,0.216625]
[1736458615249,0.01713521,92339.0,92325.0,0.216625]
[1736458615425,0.01713521,92339.0,92332.0,0.002]
[1736458615797,0.01713521,92339.0,92325.0,0.216625]
[1736458616006,0.01913521,92339.0,92325.0,0.216625]
[1736458616392,0.01713521,92339.0,92325.0,0.216625]
[1736458616586,0.01813521,92339.0,92325.0,0.216625]
[1736458616811,0.01913521,92339.0,92325.0,0.216625]
[1736458617137,0.01713521,92339.0,92325.0,0.216625]
[1736458617339,0.01913521,92339.0,92325.0,0.216625]
[1736458617478,0.13550991,92335.0,92325.0,0.216625]
[1736458618330,0.13550991,92335.0,92325.0,0.42424998]
[1736458618564,0.00249414,92339.0,92336.0,0.2166]
[1736458618778,0.00249414,92339.0,92338.0,0.239595]
[1736458619010,0.00049414,92339.0,92338.0,0.42519476]
[1736458619432,0.00249414,92339.0,92338.0,0.42519476]
[1736458619641,0.00049414,92339.0,92338.0,0.42519476]
[1736458619863,0.216503,92378.0,92338.0,0.50128873]
[1736458620080,0.001,92339.0,92338.0,0.18039397]
[1736458620308,0.001,92339.0,92338.0,0.28069373]
[1736458620678,0.001,92339.0,92338.0,0.47828873]
[1736458620929,0.13550991,92360.0,92352.0,0.216562]
[1736458621148,0.13550991,92370.0,92355.0,0.216554]
[1736458621360,0.15,92369.0,92356.0,0.10429976]
[1736458621750,0.15,92369.0,92357.0,0.21655]
[1736458621962,0.15,92369.0,92356.0,0.10429976]
[1736458622179,0.00014818,92370.0,92357.0,0.1148512]
[1736458622650,0.00014818,92370.0,92359.0,0.216546]
[1736458622652,0.00014818,92370.0,92358.0,0.10429976]
[1736458622653,0.00014818,92370.0,92367.0,0.216525]
[1736458622870,0.00014818,92370.0,92369.0,0.239522]
[1736458623087,0.00014818,92370.0,92369.0,0.50470974]
[1736458623510,0.00014818,92370.0,92369.0,0.75136427]
[1736458624198,0.00114818,92370.0,92369.0,0.75736427]
[1736458624409,0.00114818,92370.0,92369.0,0.75936427]
[1736458625381,0.00014818,92370.0,92369.0,0.75336427]
[1736458625909,0.00114818,92370.0,92369.0,0.75936427]
[1736458626988,0.00114818,92370.0,92369.0,0.68849629]
[1736458628054,0.00114818,92370.0,92369.0,0.67937629]
[1736458628432,0.00114818,92370.0,92369.0,0.67949627]
[1736458628774,0.00114818,92370.0,92369.0,0.77949627]
[1736458628978,0.0001704,92380.0,92375.0,0.1]
[1736458629191,0.0001704,92380.0,92379.0,0.40179876]
[1736458629402,0.0001704,92380.0,92379.0,0.42479876]
[1736458630254,0.0001704,92380.0,92379.0,0.43391876]
[1736458630717,0.0001704,92380.0,92379.0,0.43991876]
[1736458630718,0.0011704,92380.0,92379.0,0.43991876]
[1736458631126,0.0011704,92380.0,92379.0,0.44291876]
[1736458631330,0.0011704,92380.0,92379.0,0.53809852]
[1736458631541,0.0011704,92380.0,92379.0,0.44291876]
[1736458632974,0.0011704,92380.0,92379.0,0.41079876]
[1736458633355,0.0011704,92380.0,92379.0,0.40179874]
[1736458633995,0.0011704,92380.0,92379.0,0.11329976]
[1736458634980,0.0011704,92380.0,92379.0,0.009]
[1736458635819,0.0011704,92380.0,92379.0,0.003]
[1736458636063,0.0001704,92380.0,92376.0,0.25552271]
[1736458636265,0.0041704,92380.0,92376.0,0.25552271]
[1736458636706,0.216499,92379.0,92376.0,0.25552271]
[1736458636926,0.432999,92379.0,92376.0,0.25552271]
[1736458637195,0.366504,92377.0,92376.0,0.25552271]
[1736458638479,0.366504,92377.0,92376.0,0.24652269]
[1736458638679,0.366504,92377.0,92376.0,0.24852269]
[1736458639437,0.38784842,92377.0,92376.0,0.24852269]
[1736458639564,0.38784842,92377.0,92376.0,0.24652269]
[1736458639782,0.38884842,92377.0,92376.0,0.24652269]
[1736458642057,0.17234442,92377.0,92376.0,0.24652269]
[1736458642676,0.17134442,92377.0,92376.0,0.24652269]
[1736458642881,0.001,92377.0,92376.0,0.24652269]
[1736458643085,0.0001704,92380.0,92376.0,0.24652269]
[1736458643291,0.002,92377.0,92376.0,0.23752267]
[1736458643728,0.002,92377.0,92376.0,0.31234684]
[1736458643939,0.001,92377.0,92376.0,0.23752267]
[1736458645053,0.0001704,92380.0,92377.0,0.216504]
[1736458645274,0.0011704,92380.0,92377.0,0.216504]
[1736458645817,0.0001704,92380.0,92377.0,0.216504]
[1736458646035,0.0001704,92380.0,92376.0,0.24352267]
[1736458646240,0.0001704,92380.0,92376.0,0.23852267]
[1736458646446,0.0001704,92380.0,92377.0,0.004]
[1736458646660,0.0001704,92380.0,92376.0,0.23752267]
[1736458646862,0.0001704,92380.0,92377.0,0.001]
[1736458647086,0.15,92378.0,92377.0,0.001]
[1736458647720,0.0001704,92380.0,92377.0,0.001]
[1736458648145,0.0001704,92380.0,92377.0,0.005]
[1736458648380,0.0001704,92380.0,92376.0,0.07209998]
[1736458648587,0.001,92378.0,92376.0,0.07209998]
[1736458649205,0.001,92378.0,92371.0,0.216516]
[1736458649425,0.001,92378.0,92371.0,0.32081576]
[1736458649663,0.0001704,92380.0,92371.0,0.32081576]
[1736458649873,0.001,92378.0,92375.0,0.216508]
[1736458650306,0.0001704,92380.0,92375.0,0.07538478]
[1736458650528,0.0001704,92380.0,92379.0,0.216499]
[1736458650735,0.00022384,92380.0,92379.0,0.32079876]
[1736458650937,0.00022384,92380.0,92379.0,0.34379876]
[1736458651386,0.00022384,92380.0,92379.0,0.42389876]
[1736458651593,0.00022384,92380.0,92379.0,0.51424074]
[1736458651808,0.00022384,92380.0,92379.0,0.42389876]
[1736458652023,0.00022384,92380.0,92379.0,0.42789876]
[1736458652234,0.00022384,92380.0,92379.0,0.42389876]
[1736458652665,0.00122384,92380.0,92379.0,0.42889876]
[1736458652903,0.00122384,92380.0,92379.0,0.44376912]
[1736458653150,0.00122384,92380.0,92379.0,0.47716251]
[1736458653365,0.00122384,92380.0,92379.0,0.46816249]
[1736458654191,0.00222384,92380.0,92379.0,0.46816249]
[1736458656791,8.4e-07,92380.0,92379.0,0.81816249]
[1736458657017,6.4e-07,92392.0,92388.0,0.023]
[1736458657234,6e-07,92399.0,92398.0,0.35]
[1736458657444,6e-07,92399.0,92398.0,0.56651976]
[1736458657646,6e-07,92399.0,92398.0,0.82947376]
[1736458657855,6e-07,92399.0,92398.0,0.93377352]
[1736458658273,6e-07,92399.0,92398.0,0.9247735]
[1736458658519,0.0001706,92401.0,92400.0,0.34099998]
[1736458658724,0.0001706,92401.0,92400.0,0.54839974]
[1736458659143,6e-07,92401.0,92400.0,0.54839974]
[1736458659361,6e-07,92401.0,92400.0,0.6526995]
[1736458659832,0.0001702,92410.0,92409.0,0.316429]
[1736458660074,0.0001702,92410.0,92409.0,0.52382876]
[1736458660766,2e-07,92410.0,92409.0,1.35262874]
[1736458660971,2e-07,92410.0,92409.0,0.9150285]
[1736458661824,2e-07,92410.0,92409.0,0.9333561]
[1736458662058,0.15,92457.0,92416.0,0.6419]
[1736458662259,0.01793384,92450.0,92416.0,1.06271176]
[1736458662551,0.01793384,92450.0,92416.0,1.31463446]
[1736458662762,0.00900002,92448.0,92416.0,1.41893422]
[1736458662960,0.01793384,92450.0,92416.0,1.41893422]
[1736458663585,0.0001702,92438.0,92416.0,1.41893422]
[1736458664206,0.0001702,92438.0,92416.0,1.4099342]
[1736458664457,0.0001702,92438.0,92416.0,1.3099342]
[1736458664632,0.0001702,92438.0,92416.0,1.21875444]
[1736458665232,0.0001702,92438.0,92416.0,1.20963444]
[1736458665432,0.00900002,92436.0,92416.0,1.18263444]
[1736458665997,0.00900002,92436.0,92416.0,1.20963444]
[1736458666293,0.0011702,92417.0,92416.0,1.31433386]
[1736458666592,0.0001702,92417.0,92416.0,1.30533386]
[1736458666794,0.0001702,92417.0,92416.0,0.77243388]
[1736458667421,0.0001702,92417.0,92416.0,0.76843388]
[1736458667624,0.0001702,92417.0,92416.0,0.78043388]
[1736458667826,0.0011702,92417.0,92416.0,0.78043388]
[1736458668035,0.0001702,92417.0,92416.0,0.77143388]
[1736458668253,0.0001702,92417.0,92416.0,0.67273446]
[1736458668457,0.0011702,92417.0,92416.0,0.67673444]
[1736458668692,0.0001702,92417.0,92416.0,0.66773444]
[1736458668890,0.0011702,92417.0,92416.0,0.67673444]
[1736458669302,0.0001702,92417.0,92416.0,0.66773444]
[1736458669509,0.0011702,92417.0,92416.0,0.73807889]
[1736458669714,0.0011702,92417.0,92416.0,0.67673444]
[1736458669928,0.0011702,92417.0,92416.0,0.57663444]
[1736458670364,0.0011702,92417.0,92416.0,0.36522246]
[1736458670572,0.0011702,92417.0,92416.0,0.36822246]
[1736458671025,0.0001702,92417.0,92416.0,0.35922246]
[1736458671315,0.0011702,92417.0,92416.0,0.2609227]
[1736458671550,0.0001702,92417.0,92416.0,0.2529227]
[1736458671967,0.0001702,92417.0,92416.0,0.2559227]
[1736458672205,0.0001702,92417.0,92416.0,0.2529227]
[1736458672393,0.0001702,92417.0,92416.0,0.2539227]
[1736458672820,0.0001702,92417.0,92416.0,0.35622246]
[1736458673469,0.0001702,92417.0,92416.0,0.24292268]
[1736458674125,0.0001702,92417.0,92416.0,0.24592268]
[1736458674349,0.0001702,92417.0,92416.0,0.24292268]
[1736458674569,0.0001702,92417.0,92416.0,0.24392268]
[1736458674790,0.0021702,92417.0,92416.0,0.24392268]
[1736458674930,0.0001702,92417.0,92416.0,0.24392268]
[1736458675148,0.0001702,92417.0,92416.0,0.24292268]
[1736458675353,0.0011702,92417.0,92416.0,0.24292268]
[1736458676665,0.0001702,92417.0,92416.0,0.24292268]
[1736458677059,0.0011702,92417.0,92416.0,0.24292268]
[1736458677265,0.02812035,92417.0,92416.0,0.24292268]
[1736458677465,0.00917022,92417.0,92416.0,0.24292268]
[1736458677969,0.216449,92401.0,92388.0,0.216478]
[1736458678196,0.00900002,92399.0,92382.0,0.216492]
[1736458678414,0.00900002,92399.0,92379.0,0.0803851]
[1736458678415,0.00900002,92390.0,92377.0,0.216504]
[1736458678623,0.00900002,92390.0,92379.0,0.216499]
[1736458678825,0.00900002,92390.0,92379.0,0.32079876]
[1736458679274,0.00900002,92390.0,92379.0,0.53729776]
[1736458679723,0.00900002,92390.0,92382.0,0.002]
[1736458680372,0.01100002,92390.0,92383.0,0.21649]
[1736458680779,0.00900002,92390.0,92383.0,0.21649]
[1736458681205,0.01100002,92390.0,92383.0,0.21649]
[1736458681431,0.01400002,92390.0,92383.0,0.21649]
[1736458681763,0.00900002,92390.0,92383.0,0.21649]
[1736458681980,0.01100002,92390.0,92383.0,0.21649]
[1736458682190,0.00900002,92390.0,92383.0,0.21649]
[1736458682414,0.002,92390.0,92387.0,0.21648]
[1736458682632,0.005,92390.0,92387.0,0.21648]
[1736458682850,0.002,92390.0,92387.0,0.43296]
[1736458683503,0.002,92390.0,92387.0,0.42395998]
[1736458683718,0.002,92390.0,92387.0,0.20747998]
[1736458683927,0.02662085,92397.0,92387.0,0.20747998]
[1736458684136,0.002,92390.0,92387.0,0.20747998]
[1736458684346,0.004,92390.0,92387.0,0.20747998]
[1736458684557,0.002,92390.0,92387.0,0.20747998]
[1736458684772,0.15,92406.0,92387.0,0.20747998]
[1736458684773,0.00900002,92408.0,92388.0,0.10429976]
[1736458684991,0.00014809,92412.0,92403.0,0.216443]
[1736458685222,0.00014809,92412.0,92407.0,0.216433]
[1736458685675,0.00014809,92412.0,92408.0,0.216431]
[1736458685907,0.009,92408.0,92404.0,0.023]
[1736458686129,0.009,92408.0,92406.0,0.239436]
[1736458686349,0.009,92408.0,92407.0,0.12729976]
[1736458686485,0.009,92408.0,92407.0,0.20759976]
[1736458687178,0.00014809,92412.0,92407.0,0.20759976]
[1736458687179,0.00014809,92412.0,92408.0,0.023]
[1736458687378,0.00114809,92412.0,92409.0,0.10429976]
[1736458687840,0.00114809,92412.0,92410.0,0.24050801]
[1736458688047,0.00014809,92412.0,92411.0,0.12729976]
[1736458688482,0.0001704,92449.0,92428.0,0.20738398]
[1736458688688,0.15,92439.0,92428.0,0.20738398]
[1736458689630,0.15,92439.0,92437.0,0.216361]
[1736458689843,0.15,92449.0,92437.0,0.216361]
[1736458690051,0.15,92449.0,92428.0,0.03356249]
[1736458690052,0.00014803,92449.0,92430.0,0.023]
[1736458690256,0.00014803,92449.0,92431.0,0.10429976]
[1736458690459,0.00014803,92449.0,92437.0,0.216361]
[1736458690677,0.002,92439.0,92437.0,0.216361]
[1736458691308,0.01688435,92449.0,92431.0,0.10429976]
[1736458691518,0.13550991,92441.0,92431.0,0.32067676]
[1736458691740,0.13550991,92441.0,92437.0,0.001]
[1736458691948,0.216348,92444.0,92431.0,0.32067676]
[1736458692156,0.216357,92440.0,92420.0,0.0795]
[1736458692358,0.216357,92440.0,92411.0,0.0485]
[1736458692359,0.13550991,92430.0,92422.0,0.216398]
[1736458692561,0.13550991,92430.0,92422.0,0.32069776]
[1736458693223,0.13550991,92430.0,92411.0,0.128]
[1736458693440,0.13550991,92421.0,92405.0,0.00908]
[1736458693654,0.15,92427.0,92406.0,0.10429976]
[1736458693866,0.15,92427.0,92413.0,0.216418]
[1736458694078,0.13550991,92440.0,92414.0,0.10429976]
[1736458694353,0.13550991,92424.0,92408.0,0.216431]
[1736458694566,0.35192191,92417.0,92406.0,0.216436]
[1736458695226,0.13550991,92417.0,92406.0,0.216436]
[1736458695426,0.13550991,92417.0,92406.0,0.432872]
[1736458695640,0.366397,92423.0,92410.0,0.216426]
[1736458695841,0.366386,92427.0,92414.0,0.216415]
[1736458696049,0.582773,92427.0,92411.0,0.216423]
[1736458696667,0.366386,92427.0,92411.0,0.216423]
[1736458696920,0.13550991,92440.0,92412.0,0.10538179]
[1736458697114,0.216332,92451.0,92412.0,0.10538179]
[1736458697115,0.19470991,92450.0,92413.0,0.05768168]
[1736458697328,0.19470991,92450.0,92428.0,0.216384]
[1736458697541,0.15,92442.0,92428.0,0.216384]
[1736458697961,0.2331003,92443.0,92428.0,0.216384]
[1736458698113,0.2331003,92443.0,92432.0,0.216373]
[1736458698114,0.0167503,92443.0,92432.0,0.216373]
[1736458698314,0.009,92443.0,92432.0,0.20737298]
[1736458698522,0.00900002,92452.0,92433.0,0.216372]
[1736458698754,0.004,92442.0,92440.0,0.216356]
[1736458698960,0.012,92442.0,92436.0,0.216365]
[1736458699163,0.004,92442.0,92436.0,0.24843148]
[1736458699435,0.004,92442.0,92439.0,0.432714]
[1736458699645,0.004,92442.0,92439.0,0.53701376]
[1736458699836,0.004148,92442.0,92441.0,0.216354]
[1736458699959,0.004148,92442.0,92441.0,0.32065376]
[1736458699960,0.000148,92442.0,92441.0,0.32065376]
[1736458700389,0.000148,92442.0,92441.0,0.34365376]
[1736458701301,0.000148,92442.0,92441.0,0.34565376]
[1736458701478,0.001148,92442.0,92441.0,0.35265376]
[1736458702118,0.1,92483.0,92441.0,0.35265376]
[1736458702119,0.15,92464.0,92442.0,0.023]
[1736458702373,0.216307,92462.0,92447.0,0.216338]
[1736458702546,0.15,92462.0,92447.0,0.216338]
[1736458703407,0.15,92462.0,92447.0,0.20733798]
[1736458704313,0.153,92462.0,92447.0,0.20733798]
[1736458704523,0.15,92460.0,92447.0,0.20733798]
[1736458704728,0.216321,92455.0,92434.0,0.216368]
[1736458704853,0.216321,92455.0,92441.0,0.216354]
[1736458705268,0.216332,92451.0,92437.0,0.216361]
[1736458705480,0.28550991,92460.0,92438.0,0.10429976]
[1736458705868,0.15,92458.0,92443.0,0.216348]
[1736458706076,0.216316,92457.0,92443.0,0.216348]
[1736458707616,0.217316,92457.0,92443.0,0.216348]
[1736458708061,0.221316,92457.0,92443.0,0.216348]
[1736458708268,0.220316,92457.0,92443.0,0.216348]
[1736458708485,0.220316,92457.0,92439.0,0.216357]
[1736458708486,0.216327,92453.0,92439.0,0.216357]
[1736458708746,0.216327,92453.0,92439.0,0.32065676]
[1736458708961,0.218316,92457.0,92439.0,0.53701476]
[1736458709515,0.218316,92457.0,92442.0,0.216349]
[1736458709739,0.216316,92457.0,92442.0,0.216349]
[1736458710169,0.433634,92457.0,92442.0,0.216349]
[1736458710444,0.216326,92453.0,92439.0,0.32065676]
[1736458710655,0.216319,92456.0,92443.0,0.216349]
[1736458710831,0.15,92460.0,92446.0,0.21634]
[1736458711091,0.002,92457.0,92446.0,0.21634]
[1736458711324,0.002,92457.0,92450.0,0.216333]
[1736458711538,0.15,92458.0,92450.0,0.2379663]
[1736458711763,0.002,92453.0,92450.0,0.216333]
[1736458712028,0.15,92458.0,92450.0,0.216333]
[1736458712262,0.004,92457.0,92450.0,0.216333]
[1736458712498,0.15,92464.0,92450.0,0.216333]
[1736458712685,0.15,92462.0,92450.0,0.216333]
[1736458712922,0.001,92458.0,92450.0,0.216333]
[1736458713143,0.15,92462.0,92450.0,0.216333]
[1736458713370,0.001,92457.0,92450.0,0.20733298]
[1736458713648,0.002,92457.0,92450.0,0.20733298]
[1736458713854,0.001,92457.0,92450.0,0.42366598]
[1736458714078,0.001,92457.0,92450.0,0.20733298]
[1736458714986,0.001,92457.0,92447.0,0.216339]
[1736458715257,0.15,92460.0,92446.0,0.216341]
[1736458715526,0.001,92457.0,92446.0,0.216341]
[1736458715731,0.001,92457.0,92430.0,0.13550991]
[1736458715732,0.001,92457.0,92456.0,0.216319]
[1736458715907,0.001,92457.0,92456.0,0.32061876]
[1736458716104,0.002,92457.0,92456.0,0.32061876]
[1736458716484,0.0001702,92466.0,92456.0,0.32061876]
[1736458716687,0.0001702,92466.0,92452.0,0.216326]
[1736458716892,0.001,92457.0,92454.0,0.216323]
[1736458717339,0.0001702,92466.0,92454.0,0.216323]
[1736458718181,0.0001702,92466.0,92457.0,0.216314]
[1736458718358,0.0001702,92466.0,92457.0,0.20731398]
[1736458718571,0.0001702,92466.0,92454.0,0.216323]
[1736458719145,0.0031702,92466.0,92454.0,0.216323]
[1736458719471,0.0001702,92466.0,92455.0,0.05369518]
[1736458719655,0.0021702,92466.0,92454.0,0.216323]
[1736458719854,0.15,92463.0,92419.0,0.5419]
[1736458720064,0.0021702,92466.0,92432.0,0.005148]
[1736458720065,0.13550991,92442.0,92432.0,0.005148]
[1736458720472,0.21634,92447.0,92432.0,0.005148]
[1736458721481,0.15,92449.0,92432.0,0.005148]
[1736458721688,0.002,92447.0,92432.0,0.005148]
[1736458721894,0.002,92447.0,92433.0,0.216372]
[1736458722305,0.006,92447.0,92433.0,0.216372]
[1736458722461,0.216342,92446.0,92432.0,0.005148]
[1736458723321,0.216355,92441.0,92432.0,0.005148]
[1736458723525,0.13550991,92442.0,92432.0,0.005148]
[1736458723526,0.15,92438.0,92432.0,0.005148]
[1736458724353,0.15,92438.0,92422.0,0.21254598]
[1736458724570,0.15,92438.0,92422.0,0.2130396]
[1736458724804,0.15,92441.0,92422.0,0.2130396]
[1736458724942,0.15,92441.0,92423.0,0.04294466]
[1736458725365,0.15,92441.0,92425.0,0.216391]
[1736458725969,0.15,92444.0,92429.0,0.216381]
[1736458726669,0.001,92441.0,92429.0,0.216381]
[1736458727080,0.001,92441.0,92433.0,0.216371]
[1736458727278,0.001,92441.0,92422.0,0.00049362]
[1736458727488,0.001,92441.0,92435.0,0.023]
[1736458727694,0.001,92441.0,92437.0,0.023]
[1736458727901,0.002,92441.0,92440.0,0.239356]
[1736458728102,0.002,92441.0,92440.0,0.34365576]
[1736458728322,0.002,92441.0,92440.0,0.34373574]
[1736458728522,0.001,92441.0,92440.0,0.42138221]
[1736458728729,0.001,92441.0,92440.0,0.55148221]
[1736458729160,0.0001702,92466.0,92441.0,0.023]
[1736458729362,0.0001702,92466.0,92456.0,0.0797]
[1736458729569,0.0001702,92466.0,92456.0,0.1271]
[1736458729977,0.0001702,92466.0,92457.0,0.216316]
[1736458730395,0.0011702,92466.0,92458.0,0.16027426]
[1736458730627,0.00131817,92466.0,92465.0,0.297998]
[1736458730871,0.00031817,92466.0,92465.0,0.297998]
[1736458731121,0.00131817,92466.0,92465.0,0.297998]
[1736458731348,0.00131817,92466.0,92465.0,0.48715774]
[1736458731583,0.00131817,92466.0,92465.0,0.42529776]
[1736458732270,0.00031817,92466.0,92465.0,0.42529776]
[1736458732715,0.00031817,92466.0,92465.0,0.42929776]
[1736458733158,0.00031817,92466.0,92465.0,0.42529776]
[1736458733366,0.00031817,92466.0,92465.0,0.41629774]
[1736458733579,0.00031817,92466.0,92465.0,0.41829774]
[1736458733783,0.00031817,92466.0,92465.0,0.52906571]
[1736458733984,0.00031817,92466.0,92465.0,0.46269774]
[1736458734193,0.00031817,92466.0,92465.0,0.46469774]
[1736458734607,0.00131817,92466.0,92465.0,0.47169774]
[1736458734833,0.00031817,92466.0,92465.0,0.46469774]
[1736458735654,0.00131817,92466.0,92465.0,0.47269774]
[1736458735863,0.216218,92499.0,92482.0,0.216256]
[1736458736059,0.0203453,92499.0,92482.0,0.216256]
[1736458736357,0.216218,92499.0,92484.0,0.216253]
[1736458736560,0.13565788,92500.0,92484.0,0.216253]
[1736458736759,0.13565788,92500.0,92483.0,0.0828]
[1736458736760,0.00014797,92500.0,92483.0,0.0828]
[1736458736978,0.2162,92507.0,92485.0,0.432501]
[1736458737223,0.002,92499.0,92485.0,0.432501]
[1736458737882,0.002,92499.0,92494.0,0.216228]
[1736458738087,0.006,92499.0,92494.0,0.216228]
[1736458738505,0.002,92499.0,92494.0,0.20722798]
[1736458738748,0.004,92499.0,92495.0,0.0472066]
[1736458738956,0.02103648,92507.0,92495.0,0.0472066]
[1736458739169,0.002,92500.0,92490.0,0.216238]
[1736458739370,0.001,92499.0,92492.0,0.216234]
[1736458739582,0.15,92509.0,92488.0,0.0486]
[1736458739583,0.13550991,92502.0,92488.0,0.0486]
[1736458739822,0.13550991,92502.0,92484.0,0.216253]
[1736458740033,0.13541586,92502.0,92484.0,0.2951938]
[1736458740236,0.13541586,92502.0,92488.0,0.216243]
[1736458740449,0.001,92499.0,92485.0,0.216251]
[1736458741319,0.216231,92494.0,92483.0,0.00014797]
[1736458741557,0.13550991,92493.0,92483.0,0.00014797]
[1736458741766,0.216223,92497.0,92483.0,0.00014797]
[1736458742502,0.216223,92497.0,92483.0,0.00214797]
[1736458742784,0.216223,92497.0,92483.0,0.00014797]
[1736458743425,0.216223,92497.0,92481.0,0.20740695]
[1736458743634,0.21637089,92497.0,92481.0,0.20740695]
[1736458743895,0.02094832,92497.0,92487.0,0.432492]
[1736458744059,0.02094832,92497.0,92488.0,0.0483]
[1736458744616,0.02094832,92497.0,92489.0,0.216241]
[1736458744839,0.02694832,92497.0,92489.0,0.216241]
[1736458745042,0.02294832,92497.0,92489.0,0.216241]
[1736458745655,0.02294832,92497.0,92476.0,0.0787]
[1736458745857,0.15,92489.0,92477.0,0.32056876]
[1736458746072,0.15,92489.0,92477.0,0.216269]
[1736458746925,0.15,92493.0,92481.0,0.216259]
[1736458747593,0.001,92489.0,92481.0,0.216259]
[1736458748012,0.15,92493.0,92481.0,0.216259]
[1736458748237,0.153,92493.0,92481.0,0.216259]
[1736458748434,0.15,92493.0,92481.0,0.20725898]
[1736458748860,0.15,92493.0,92481.0,0.003]
[1736458749066,0.15,92491.0,92477.0,0.216269]
[1736458749491,0.15,92491.0,92481.0,0.216259]
[1736458750548,0.02094832,92497.0,92485.0,0.216249]
[1736458750962,0.02094832,92497.0,92487.0,0.216246]
[1736458751193,0.003,92491.0,92487.0,0.32054576]
[1736458751401,0.003,92491.0,92487.0,0.53679176]
[1736458751620,0.02094832,92497.0,92487.0,0.53679176]
[1736458751841,0.02394832,92497.0,92491.0,0.216237]
[1736458752273,0.02094832,92497.0,92491.0,0.216237]
[1736458752626,0.00014789,92497.0,92491.0,0.216237]
[1736458753290,0.00014789,92497.0,92496.0,0.0832]
[1736458753496,0.00014789,92497.0,92496.0,0.07419998]
[1736458753702,0.00014789,92497.0,92496.0,0.14099606]
[1736458753913,0.00014789,92497.0,92496.0,0.17958079]
[1736458754123,0.00114789,92497.0,92496.0,0.20258079]
[1736458754329,0.00114789,92497.0,92496.0,0.20149974]
[1736458754542,0.00014789,92497.0,92496.0,0.20149974]
[1736458755414,0.00014789,92497.0,92496.0,0.20549974]
[1736458755655,0.00014789,92497.0,92496.0,0.18249974]
[1736458755866,0.00014789,92497.0,92496.0,0.07419998]
[1736458756085,0.00014789,92497.0,92496.0,0.07619998]
[1736458756309,0.16193291,92510.0,92496.0,0.07619998]
[1736458756439,0.16193291,92510.0,92496.0,0.29042398]
[1736458756651,0.216196,92509.0,92496.0,0.29042398]
[1736458756850,0.216196,92509.0,92496.0,0.29142398]
[1736458757286,0.001,92497.0,92496.0,0.29842398]
[1736458757566,0.216196,92509.0,92496.0,0.07519998]
[1736458757700,0.216207,92504.0,92496.0,0.001]
[1736458757899,0.15,92507.0,92496.0,0.001]
[1736458758107,0.216218,92500.0,92490.0,0.0797]
[1736458758305,0.09392598,92500.0,92496.0,0.001]
[1736458758518,0.15,92500.0,92496.0,0.001]
[1736458758719,0.216216,92500.0,92490.0,0.07069998]
[1736458759321,0.217216,92500.0,92490.0,0.07069998]